{"text_format":"1","workbook":"xlsx","n_sheets":2,"sheets":["Data","Mar"],"not_rendered":{"charts":0,"images":1,"macros":1,"external_links":0,"defined_names":7,"comments":1,"pivot_tables":0},"unopened":[],"bounds":{"document_bytes":16777216,"sheet_cells":100000,"rows_first":2000,"rows_last":500,"rows_between":2000,"halvings":0,"cell_chars":16384,"cell_head_chars":4096},"cells_cut":0,"cells_raw":0,"read":"whole","date_system":"1900"}

{"sheet":"Data","index":0,"n_rows":31,"n_cols":1,"rows_kept":31,"cut":false,"hidden":false,"merged":[]}
["01-Mar-22"]
["02-Mar-22"]
["03-Mar-22"]
["04-Mar-22"]
["05-Mar-22"]
["06-Mar-22"]
["07-Mar-22"]
["08-Mar-22"]
["09-Mar-22"]
["10-Mar-22"]
["11-Mar-22"]
["12-Mar-22"]
["13-Mar-22"]
["14-Mar-22"]
["15-Mar-22"]
["16-Mar-22"]
["17-Mar-22"]
["18-Mar-22"]
["19-Mar-22"]
["20-Mar-22"]
["21-Mar-22"]
["22-Mar-22"]
["23-Mar-22"]
["24-Mar-22"]
["25-Mar-22"]
["26-Mar-22"]
["27-Mar-22"]
["28-Mar-22"]
["29-Mar-22"]
["30-Mar-22"]
["31-Mar-22"]

{"sheet":"Mar","index":1,"n_rows":33,"n_cols":226,"rows_kept":33,"cut":false,"hidden":false,"merged":[]}
[1,2,3,4,5,6,7,8,9,10,11,12,13,14,15,16,17,18,19,20,21,22,23,24,25,26,27,28,29,30,31,32,33,34,35,36,37,38,39,40,41,42,43,44,45,46,47,48,49,50,51,52,53,54,55,56,57,58,59,60,61,62,63,64,65,66,67,68,69,70,71,72,73,74,75,76,77,78,79,80,81,82,83,84,85,86,87,88,89,90,91,92,93,94,95,96,97,98,99,100,101,102,103,104,105,106,107,108,109,110,111,112,113,114,115,116,117,118,119,120,121,122,123,124,125,126,127,128,129,130,131,132,133,134,135,136,137,138,139,140,141,142,143,144,145,146,147,148,149,150,151,152,153,154,155,156,157,158,159,160,161,162,163,164,165,166,167,168,169,170,171,172,173,174,175,176,177,178,179,180,181,182,183,184,185,186,187,188,189,190,191,192,193,194,195,196,197,198,199,200,201,202,203,204,205,206,207,208,209,210,211,212,213,214,215,216,217,218,219,220,221,222,223,224,225,226]
[null,null,null,null,null,null,30,0,null,null,null,null,null,0,0,null,null,null,null,null,0,0,null,null,null,null,null,0,0,null,null,null,null,null,0,0,null,null,null,null,null,0,0,null,null,null,null,null,0,0,null,null,null,null,null,0,0,null,null,null,null,null,0,0,null,null,null,null,null,0,0,null,null,null,null,null,0,0,null,null,null,null,null,0,0,null,null,null,null,null,0,0,null,null,null,null,null,0,0,null,null,null,null,null,0,0,null,null,null,null,null,0,0,null,null,null,null,null,0,0,null,null,null,null,null,0,0,null,null,null,null,null,0,0,null,null,null,null,null,0,0,null,null,null,null,null,0,0,null,null,null,null,null,0,0,null,null,null,null,null,0,0,null,null,null,null,null,0,0,null,null,null,null,null,0,0,null,null,null,null,null,0,0,null,null,null,null,null,0,0,null,null,null,null,null,0,0,null,null,null,null,null,0,0,null,null,null,null,null,0,0,null,null,null,null,null,0,0]
[null,null,null,null,null,null,"2022-03-01",null,null,null,null,null,null,{"$f":"G3+1","v":"2022-03-02"},null,null,null,null,null,null,{"$f":"N3+1","v":"2022-03-03"},null,null,null,null,null,null,{"$f":"U3+1","v":"2022-03-04"},null,null,null,null,null,null,{"$f":"AB3+1","v":"2022-03-05"},null,null,null,null,null,null,{"$f":"AI3+1","v":"2022-03-06"},null,null,null,null,null,null,{"$f":"AP3+1","v":"2022-03-07"},null,null,null,null,null,null,{"$f":"AW3+1","v":"2022-03-08"},null,null,null,null,null,null,{"$f":"BD3+1","v":"2022-03-09"},null,null,null,null,null,null,{"$f":"BK3+1","v":"2022-03-10"},null,null,null,null,null,null,{"$f":"BR3+1","v":"2022-03-11"},null,null,null,null,null,null,{"$f":"BY3+1","v":"2022-03-12"},null,null,null,null,null,null,{"$f":"CF3+1","v":"2022-03-13"},null,null,null,null,null,null,{"$f":"CM3+1","v":"2022-03-14"},null,null,null,null,null,null,{"$f":"CT3+1","v":"2022-03-15"},null,null,null,null,null,null,{"$f":"DA3+1","v":"2022-03-16"},null,null,null,null,null,null,{"$f":"DH3+1","v":"2022-03-17"},null,null,null,null,null,null,{"$f":"DO3+1","v":"2022-03-18"},null,null,null,null,null,null,{"$f":"DV3+1","v":"2022-03-19"},null,null,null,null,null,null,{"$f":"EC3+1","v":"2022-03-20"},null,null,null,null,null,null,{"$f":"EJ3+1","v":"2022-03-21"},null,null,null,null,null,null,{"$f":"EQ3+1","v":"2022-03-22"},null,null,null,null,null,null,{"$f":"EX3+1","v":"2022-03-23"},null,null,null,null,null,null,{"$f":"FE3+1","v":"2022-03-24"},null,null,null,null,null,null,{"$f":"FL3+1","v":"2022-03-25"},null,null,null,null,null,null,{"$f":"FS3+1","v":"2022-03-26"},null,null,null,null,null,null,{"$f":"FZ3+1","v":"2022-03-27"},null,null,null,null,null,null,{"$f":"GG3+1","v":"2022-03-28"},null,null,null,null,null,null,{"$f":"GN3+1","v":"2022-03-29"},null,null,null,null,null,null,{"$f":"GU3+1","v":"2022-03-30"},null,null,null,null,null,null,{"$f":"HB3+1","v":"2022-03-31"}]
[null,null,null,null,null,null,{"$f":"G3","v":"2022-03-01"},null,null,null,null,null,null,{"$f":"N3","v":"2022-03-02"},null,null,null,null,null,null,{"$f":"U3","v":"2022-03-03"},null,null,null,null,null,null,{"$f":"AB3","v":"2022-03-04"},null,null,null,null,null,null,{"$f":"AI3","v":"2022-03-05"},null,null,null,null,null,null,{"$f":"AP3","v":"2022-03-06"},null,null,null,null,null,null,{"$f":"AW3","v":"2022-03-07"},null,null,null,null,null,null,{"$f":"BD3","v":"2022-03-08"},null,null,null,null,null,null,{"$f":"BK3","v":"2022-03-09"},null,null,null,null,null,null,{"$f":"BR3","v":"2022-03-10"},null,null,null,null,null,null,{"$f":"BY3","v":"2022-03-11"},null,null,null,null,null,null,{"$f":"CF3","v":"2022-03-12"},null,null,null,null,null,null,{"$f":"CM3","v":"2022-03-13"},null,null,null,null,null,null,{"$f":"CT3","v":"2022-03-14"},null,null,null,null,null,null,{"$f":"DA3","v":"2022-03-15"},null,null,null,null,null,null,{"$f":"DH3","v":"2022-03-16"},null,null,null,null,null,null,{"$f":"DO3","v":"2022-03-17"},null,null,null,null,null,null,{"$f":"DV3","v":"2022-03-18"},null,null,null,null,null,null,{"$f":"EC3","v":"2022-03-19"},null,null,null,null,null,null,{"$f":"EJ3","v":"2022-03-20"},null,null,null,null,null,null,{"$f":"EQ3","v":"2022-03-21"},null,null,null,null,null,null,{"$f":"EX3","v":"2022-03-22"},null,null,null,null,null,null,{"$f":"FE3","v":"2022-03-23"},null,null,null,null,null,null,{"$f":"FL3","v":"2022-03-24"},null,null,null,null,null,null,{"$f":"FS3","v":"2022-03-25"},null,null,null,null,null,null,{"$f":"FZ3","v":"2022-03-26"},null,null,null,null,null,null,{"$f":"GG3","v":"2022-03-27"},null,null,null,null,null,null,{"$f":"GN3","v":"2022-03-28"},null,null,null,null,null,null,{"$f":"GU3","v":"2022-03-29"},null,null,null,null,null,null,{"$f":"HB3","v":"2022-03-30"},null,null,null,null,null,null,{"$f":"HI3","v":"2022-03-31"}]
[null,{"$f":"G3","v":"2022-03-01"},null,null,null,null,0,null,null,null,null,null,null,0,null,null,null,null,null,null,0,null,null,null,null,null,null,0,null,null,null,null,null,null,0,null,null,null,null,null,null,0,null,null,null,null,null,null,0,null,null,null,null,null,null,0,null,null,null,null,null,null,0,null,null,null,null,null,null,0,null,null,null,null,null,null,0,null,null,null,null,null,null,0,null,null,null,null,null,null,0,null,null,null,null,null,null,0,null,null,null,null,null,null,0,null,null,null,null,null,null,0,null,null,null,null,null,null,0,null,null,null,null,null,null,0,null,null,null,null,null,null,0,null,null,null,null,null,null,0,null,null,null,null,null,null,0,null,null,null,null,null,null,0,null,null,null,null,null,null,0,null,null,null,null,null,null,0,null,null,null,null,null,null,0,null,null,null,null,null,null,0,null,null,null,null,null,null,0,null,null,null,null,null,null,0,null,null,null,null,null,null,0,null,null,null,null,null,null,0,null,null,null,null,null,null,0]
[null,null,null,null,null,null,0,null,null,null,null,null,null,0,null,null,null,null,null,null,0,null,null,null,null,null,null,0,null,null,null,null,null,null,0,null,null,null,null,null,null,0,null,null,null,null,null,null,0,null,null,null,null,null,null,0,null,null,null,null,null,null,0,null,null,null,null,null,null,0,null,null,null,null,null,null,0,null,null,null,null,null,null,0,null,null,null,null,null,null,0,null,null,null,null,null,null,0,null,null,null,null,null,null,0,null,null,null,null,null,null,0,null,null,null,null,null,null,0,null,null,null,null,null,null,0,null,null,null,null,null,null,0,null,null,null,null,null,null,0,null,null,null,null,null,null,0,null,null,null,null,null,null,0,null,null,null,null,null,null,0,null,null,null,null,null,null,0,null,null,null,null,null,null,0,null,null,null,null,null,null,0,null,null,null,null,null,null,0,null,null,null,null,null,null,0,null,null,null,null,null,null,0,null,null,null,null,null,null,0,null,null,null,null,null,null,0]
[null,null,null,null,null,null,0,null,null,null,null,null,null,0,null,null,null,null,null,null,0,null,null,null,null,null,null,0,null,null,null,null,null,null,0,null,null,null,null,null,null,0,null,null,null,null,null,null,0,null,null,null,null,null,null,0,null,null,null,null,null,null,0,null,null,null,null,null,null,0,null,null,null,null,null,null,0,null,null,null,null,null,null,0,null,null,null,null,null,null,0,null,null,null,null,null,null,0,null,null,null,null,null,null,0,null,null,null,null,null,null,0,null,null,null,null,null,null,0,null,null,null,null,null,null,0,null,null,null,null,null,null,0,null,null,null,null,null,null,0,null,null,null,null,null,null,0,null,null,null,null,null,null,0,null,null,null,null,null,null,0,null,null,null,null,null,null,0,null,null,null,null,null,null,0,null,null,null,null,null,null,0,null,null,null,null,null,null,0,null,null,null,null,null,null,0,null,null,null,null,null,null,0,null,null,null,null,null,null,0,null,null,null,null,null,null,0]
[null,null,null,null,null,null,0,null,null,null,null,null,null,0,null,null,null,null,null,null,0,null,null,null,null,null,null,0,null,null,null,null,null,null,0,null,null,null,null,null,null,0,null,null,null,null,null,null,0,null,null,null,null,null,null,0,null,null,null,null,null,null,0,null,null,null,null,null,null,0,null,null,null,null,null,null,0,null,null,null,null,null,null,0,null,null,null,null,null,null,0,null,null,null,null,null,null,0,null,null,null,null,null,null,0,null,null,null,null,null,null,0,null,null,null,null,null,null,0,null,null,null,null,null,null,0,null,null,null,null,null,null,0,null,null,null,null,null,null,0,null,null,null,null,null,null,0,null,null,null,null,null,null,0,null,null,null,null,null,null,0,null,null,null,null,null,null,0,null,null,null,null,null,null,0,null,null,null,null,null,null,0,null,null,null,null,null,null,0,null,null,null,null,null,null,0,null,null,null,null,null,null,0,null,null,null,null,null,null,0,null,null,null,null,null,null,0]
[null,null,null,null,null,null,0,null,null,null,null,null,null,0,null,null,null,null,null,null,0,null,null,null,null,null,null,0,null,null,null,null,null,null,0,null,null,null,null,null,null,0,null,null,null,null,null,null,0,null,null,null,null,null,null,0,null,null,null,null,null,null,0,null,null,null,null,null,null,0,null,null,null,null,null,null,0,null,null,null,null,null,null,0,null,null,null,null,null,null,0,null,null,null,null,null,null,0,null,null,null,null,null,null,0,null,null,null,null,null,null,0,null,null,null,null,null,null,0,null,null,null,null,null,null,0,null,null,null,null,null,null,0,null,null,null,null,null,null,0,null,null,null,null,null,null,0,null,null,null,null,null,null,0,null,null,null,null,null,null,0,null,null,null,null,null,null,0,null,null,null,null,null,null,0,null,null,null,null,null,null,0,null,null,null,null,null,null,0,null,null,null,null,null,null,0,null,null,null,null,null,null,0,null,null,null,null,null,null,0,null,null,null,null,null,null,0]
[null,null,null,null,null,null,0,null,null,null,null,null,null,0,null,null,null,null,null,null,0,null,null,null,null,null,null,0,null,null,null,null,null,null,0,null,null,null,null,null,null,0,null,null,null,null,null,null,0,null,null,null,null,null,null,0,null,null,null,null,null,null,0,null,null,null,null,null,null,0,null,null,null,null,null,null,0,null,null,null,null,null,null,0,null,null,null,null,null,null,0,null,null,null,null,null,null,0,null,null,null,null,null,null,0,null,null,null,null,null,null,0,null,null,null,null,null,null,0,null,null,null,null,null,null,0,null,null,null,null,null,null,0,null,null,null,null,null,null,0,null,null,null,null,null,null,0,null,null,null,null,null,null,0,null,null,null,null,null,null,0,null,null,null,null,null,null,0,null,null,null,null,null,null,0,null,null,null,null,null,null,0,null,null,null,null,null,null,0,null,null,null,null,null,null,0,null,null,null,null,null,null,0,null,null,null,null,null,null,0,null,null,null,null,null,null,0]
[null,null,null,null,null,null,0,0,0,0,null,null,null,0,0,0,0,null,null,null,0,0,0,0,null,null,null,0,0,0,0,null,null,null,0,0,0,0,null,null,null,0,0,0,0,null,null,null,0,0,0,0,null,null,null,0,0,0,0,null,null,null,0,0,0,0,null,null,null,0,0,0,0,null,null,null,0,0,0,0,null,null,null,0,0,0,0,null,null,null,0,0,0,0,null,null,null,0,0,0,0,null,null,null,0,0,0,0,null,null,null,0,0,0,0,null,null,null,0,0,0,0,null,null,null,0,0,0,0,null,null,null,0,0,0,0,null,null,null,0,0,0,0,null,null,null,0,0,0,0,null,null,null,0,0,0,0,null,null,null,0,0,0,0,null,null,null,0,0,0,0,null,null,null,0,0,0,0,null,null,null,0,0,0,0,null,null,null,0,0,0,0,null,null,null,0,0,0,0,null,null,null,0,0,0,0,null,null,null,0,0,0,0,null,null,null,0,0,0,0]
[null,null,null,null,{"$f":"SUM(E14:E34)","v":0},{"$f":"SUM(F14:F34)","v":0},0,null,0,null,null,null,null,0,null,0,null,null,null,null,0,null,0,null,null,null,null,0,null,0,null,null,null,null,0,null,0,null,null,null,null,0,null,0,null,null,null,null,0,null,0,null,null,null,null,0,null,0,null,null,null,null,0,null,0,null,null,null,null,0,null,0,null,null,null,null,0,null,0,null,null,null,null,0,null,0,null,null,null,null,0,null,0,null,null,null,null,0,null,0,null,null,null,null,0,null,0,null,null,null,null,0,null,0,null,null,null,null,0,null,0,null,null,null,null,0,null,0,null,null,null,null,0,null,0,null,null,null,null,0,null,0,null,null,null,null,0,null,0,null,null,null,null,0,null,0,null,null,null,null,0,null,0,null,null,null,null,0,null,0,null,null,null,null,0,null,0,null,null,null,null,0,null,0,null,null,null,null,0,null,0,null,null,null,null,0,null,0,null,null,null,null,0,null,0,null,null,null,null,0,null,0,null,null,null,null,0,null,0]
["Product Ref.","Product name","Product Category","Product Code","Monthly Total Stock","Monthly Current Stock","Quantity Sold","Quantity product Broken, stolen or gifted","Daily Start Stock","Daily Final Stock","Additionnal Stock","New Unit Purchasing Price","New Unit Selling Price","Quantity Sold","Quantity product Broken, stolen or gifted","Daily Start Stock","Daily Final Stock","Additionnal Stock","New Unit Purchasing Price","New Unit Selling Price","Quantity Sold","Quantity product Broken, stolen or gifted","Daily Start Stock","Daily Final Stock","Additionnal Stock","New Unit Purchasing Price","New Unit Selling Price","Quantity Sold","Quantity product Broken, stolen or gifted","Daily Start Stock","Daily Final Stock","Additionnal Stock","New Unit Purchasing Price","New Unit Selling Price","Quantity Sold","Quantity product Broken, stolen or gifted","Daily Start Stock","Daily Final Stock","Additionnal Stock","New Unit Purchasing Price","New Unit Selling Price","Quantity Sold","Quantity product Broken, stolen or gifted","Daily Start Stock","Daily Final Stock","Additionnal Stock","New Unit Purchasing Price","New Unit Selling Price","Quantity Sold","Quantity product Broken, stolen or gifted","Daily Start Stock","Daily Final Stock","Additionnal Stock","New Unit Purchasing Price","New Unit Selling Price","Quantity Sold","Quantity product Broken, stolen or gifted","Daily Start Stock","Daily Final Stock","Additionnal Stock","New Unit Purchasing Price","New Unit Selling Price","Quantity Sold","Quantity product Broken, stolen or gifted","Daily Start Stock","Daily Final Stock","Additionnal Stock","New Unit Purchasing Price","New Unit Selling Price","Quantity Sold","Quantity product Broken, stolen or gifted","Daily Start Stock","Daily Final Stock","Additionnal Stock","New Unit Purchasing Price","New Unit Selling Price","Quantity Sold","Quantity product Broken, stolen or gifted","Daily Start Stock","Daily Final Stock","Additionnal Stock","New Unit Purchasing Price","New Unit Selling Price","Quantity Sold","Quantity product Broken, stolen or gifted","Daily Start Stock","Daily Final Stock","Additionnal Stock","New Unit Purchasing Price","New Unit Selling Price","Quantity Sold","Quantity product Broken, stolen or gifted","Daily Start Stock","Daily Final Stock","Additionnal Stock","New Unit Purchasing Price","New Unit Selling Price","Quantity Sold","Quantity product Broken, stolen or gifted","Daily Start Stock","Daily Final Stock","Additionnal Stock","New Unit Purchasing Price","New Unit Selling Price","Quantity Sold","Quantity product Broken, stolen or gifted","Daily Start Stock","Daily Final Stock","Additionnal Stock","New Unit Purchasing Price","New Unit Selling Price","Quantity Sold","Quantity product Broken, stolen or gifted","Daily Start Stock","Daily Final Stock","Additionnal Stock","New Unit Purchasing Price","New Unit Selling Price","Quantity Sold","Quantity product Broken, stolen or gifted","Daily Start Stock","Daily Final Stock","Additionnal Stock","New Unit Purchasing Price","New Unit Selling Price","Quantity Sold","Quantity product Broken, stolen or gifted","Daily Start Stock","Daily Final Stock","Additionnal Stock","New Unit Purchasing Price","New Unit Selling Price","Quantity Sold","Quantity product Broken, stolen or gifted","Daily Start Stock","Daily Final Stock","Additionnal Stock","New Unit Purchasing Price","New Unit Selling Price","Quantity Sold","Quantity product Broken, stolen or gifted","Daily Start Stock","Daily Final Stock","Additionnal Stock","New Unit Purchasing Price","New Unit Selling Price","Quantity Sold","Quantity product Broken, stolen or gifted","Daily Start Stock","Daily Final Stock","Additionnal Stock","New Unit Purchasing Price","New Unit Selling Price","Quantity Sold","Quantity product Broken, stolen or gifted","Daily Start Stock","Daily Final Stock","Additionnal Stock","New Unit Purchasing Price","New Unit Selling Price","Quantity Sold","Quantity product Broken, stolen or gifted","Daily Start Stock","Daily Final Stock","Additionnal Stock","New Unit Purchasing Price","New Unit Selling Price","Quantity Sold","Quantity product Broken, stolen or gifted","Daily Start Stock","Daily Final Stock","Additionnal Stock","New Unit Purchasing Price","New Unit Selling Price","Quantity Sold","Quantity product Broken, stolen or gifted","Daily Start Stock","Daily Final Stock","Additionnal Stock","New Unit Purchasing Price","New Unit Selling Price","Quantity Sold","Quantity product Broken, stolen or gifted","Daily Start Stock","Daily Final Stock","Additionnal Stock","New Unit Purchasing Price","New Unit Selling Price","Quantity Sold","Quantity product Broken, stolen or gifted","Daily Start Stock","Daily Final Stock","Additionnal Stock","New Unit Purchasing Price","New Unit Selling Price","Quantity Sold","Quantity product Broken, stolen or gifted","Daily Start Stock","Daily Final Stock","Additionnal Stock","New Unit Purchasing Price","New Unit Selling Price","Quantity Sold","Quantity product Broken, stolen or gifted","Daily Start Stock","Daily Final Stock","Additionnal Stock","New Unit Purchasing Price","New Unit Selling Price","Quantity Sold","Quantity product Broken, stolen or gifted","Daily Start Stock","Daily Final Stock","Additionnal Stock","New Unit Purchasing Price","New Unit Selling Price","Quantity Sold","Quantity product Broken, stolen or gifted","Daily Start Stock","Daily Final Stock","Additionnal Stock","New Unit Purchasing Price","New Unit Selling Price","additionnal Stock","Current Unit Purchasing Price ","New Unit Selling Price"]
[1,"Produit 1",null,null,null,0,null,null,0,0,0,0,0,null,null,0,0,0,0,0,null,null,0,0,0,0,0,null,null,0,0,0,0,0,null,null,0,0,0,0,0,null,null,0,0,0,0,0,null,null,0,0,0,0,0,null,null,0,0,0,0,0,null,null,0,0,0,0,0,null,null,0,0,0,0,0,null,null,0,0,0,0,0,null,null,0,0,0,0,0,null,null,0,0,0,0,0,null,null,0,0,0,0,0,null,null,0,0,0,0,0,null,null,0,0,0,0,0,null,null,0,0,0,0,0,null,null,0,0,0,0,0,null,null,0,0,0,0,0,null,null,0,0,0,0,9,null,null,0,0,0,0,9,null,null,0,0,0,0,9,null,null,0,0,0,0,9,null,null,0,0,0,0,9,null,null,0,0,0,0,9,null,null,0,0,0,0,9,null,null,0,0,0,0,9,null,null,0,0,0,0,9,null,null,0,0,0,0,9,null,null,0,0,0,0,9,null,null,0,0,0,0,9,{"$f":"K14+R14+Y14+AF14+AM14+AT14+BA14+BH14+BO14+BV14+CC14+CJ14+CQ14+CX14+DE14+DL14+DS14+DZ14+EG14+EN14+EU14+FB14+FI14+FP14+FW14+GD14+GK14+GR14+GY14+HF14+HM14","v":0},{"$f":"IF((IF(HN14=0,IF(HG14=0,IF(GZ14=0,IF(GS14=0,IF(GL14=0,IF(GE14=0,IF(FX14=0,IF(FQ14=0,IF(FJ14=0,IF(FC14=0,IF(EV14=0,IF(EO14=0,IF(EH14=0,IF(EA14=0,IF(DT14=0,IF(DM14=0,IF(DF14=0,IF(CY14=0,IF(CR14=0,IF(CK14=0,IF(CD14=0,IF(BW14=0,IF(BP14=0,IF(BI14=0,IF(BB14=0,IF(AU14=0,IF(AN14=0,IF(AG14=0,IF(Z14=0,IF(S14=0,IF(L14=0,HR14,L14),S14),Z14),AG14),AN14),AU14),BB14),BI14),BP14),BW14),CD14),CK14),CR14),CY14),DF14),DM14),DT14),EA14),EH14),EO14),EV14),FC14),FJ14),FQ14),FX14),GE14),GL14),GS14),GZ14),HG14),HN14))=HR14,0,IF(HN14=0,IF(HG14=0,IF(GZ14=0,IF(GS14=0,IF(GL14=0,IF(GE14=0,IF(FX14=0,IF(FQ14=0,IF(FJ14=0,IF(FC14=0,IF(EV14=0,IF(EO14=0,IF(EH14=0,IF(EA14=0,IF(DT14=0,IF(DM14=0,IF(DF14=0,IF(CY14=0,IF(CR14=0,IF(CK14=0,IF(CD14=0,IF(BW14=0,IF(BP14=0,IF(BI14=0,IF(BB14=0,IF(AU14=0,IF(AN14=0,IF(AG14=0,IF(Z14=0,IF(S14=0,IF(L14=0,HR14,L14),S14),Z14),AG14),AN14),AU14),BB14),BI14),BP14),BW14),CD14),CK14),CR14),CY14),DF14),DM14),DT14),EA14),EH14),EO14),EV14),FC14),FJ14),FQ14),FX14),GE14),GL14),GS14),GZ14),HG14),HN14))","v":0},{"$f":"IF((IF(HO14=0,IF(HH14=0,IF(HA14=0,IF(GT14=0,IF(GM14=0,IF(GF14=0,IF(FY14=0,IF(FR14=0,IF(FK14=0,IF(FD14=0,IF(EW14=0,IF(EP14=0,IF(EI14=0,IF(EB14=0,IF(DU14=0,IF(DN14=0,IF(DG14=0,IF(CZ14=0,IF(CS14=0,IF(CL14=0,IF(CE14=0,IF(BX14=0,IF(BQ14=0,IF(BJ14=0,IF(BC14=0,IF(AV14=0,IF(AO14=0,IF(AH14=0,IF(AA14=0,IF(T14=0,IF(M14=0,HW14,M14),T14),AA14),AH14),AO14),AV14),BC14),BJ14),BQ14),BX14),CE14),CL14),CS14),CZ14),DG14),DN14),DU14),EB14),EI14),EP14),EW14),FD14),FK14),FR14),FY14),GF14),GM14),GT14),HA14),HH14),HO14))=HW14,0,IF(HO14=0,IF(HH14=0,IF(HA14=0,IF(GT14=0,IF(GM14=0,IF(GF14=0,IF(FY14=0,IF(FR14=0,IF(FK14=0,IF(FD14=0,IF(EW14=0,IF(EP14=0,IF(EI14=0,IF(EB14=0,IF(DU14=0,IF(DN14=0,IF(DG14=0,IF(CZ14=0,IF(CS14=0,IF(CL14=0,IF(CE14=0,IF(BX14=0,IF(BQ14=0,IF(BJ14=0,IF(BC14=0,IF(AV14=0,IF(AO14=0,IF(AH14=0,IF(AA14=0,IF(T14=0,IF(M14=0,HW14,M14),T14),AA14),AH14),AO14),AV14),BC14),BJ14),BQ14),BX14),CE14),CL14),CS14),CZ14),DG14),DN14),DU14),EB14),EI14),EP14),EW14),FD14),FK14),FR14),FY14),GF14),GM14),GT14),HA14),HH14),HO14))","v":9}]
[2,"Produit 2",null,null,null,0,null,null,0,0,0,0,0,null,null,0,0,0,0,0,null,null,0,0,0,0,0,null,null,0,0,0,0,0,null,null,0,0,0,0,0,null,null,0,0,0,0,0,null,null,0,0,0,0,0,null,null,0,0,0,0,0,null,null,0,0,0,0,0,null,null,0,0,0,0,0,null,null,0,0,0,0,0,null,null,0,0,0,0,0,null,null,0,0,0,0,0,null,null,0,0,0,0,0,null,null,0,0,0,0,0,null,null,0,0,0,0,0,null,null,0,0,0,0,0,null,null,0,0,0,0,0,null,null,0,0,0,0,0,null,null,0,0,0,0,0,null,null,0,0,0,0,0,null,null,0,0,0,0,0,null,null,0,0,0,0,0,null,null,0,0,0,0,0,null,null,0,0,0,0,0,null,null,0,0,0,0,0,null,null,0,0,0,0,0,null,null,0,0,0,0,0,null,null,0,0,0,0,0,null,null,0,0,0,0,0,null,null,0,0,0,0,0,{"$f":"K15+R15+Y15+AF15+AM15+AT15+BA15+BH15+BO15+BV15+CC15+CJ15+CQ15+CX15+DE15+DL15+DS15+DZ15+EG15+EN15+EU15+FB15+FI15+FP15+FW15+GD15+GK15+GR15+GY15+HF15+HM15","v":0},0,{"$f":"IF((IF(HO15=0,IF(HH15=0,IF(HA15=0,IF(GT15=0,IF(GM15=0,IF(GF15=0,IF(FY15=0,IF(FR15=0,IF(FK15=0,IF(FD15=0,IF(EW15=0,IF(EP15=0,IF(EI15=0,IF(EB15=0,IF(DU15=0,IF(DN15=0,IF(DG15=0,IF(CZ15=0,IF(CS15=0,IF(CL15=0,IF(CE15=0,IF(BX15=0,IF(BQ15=0,IF(BJ15=0,IF(BC15=0,IF(AV15=0,IF(AO15=0,IF(AH15=0,IF(AA15=0,IF(T15=0,IF(M15=0,HW15,M15),T15),AA15),AH15),AO15),AV15),BC15),BJ15),BQ15),BX15),CE15),CL15),CS15),CZ15),DG15),DN15),DU15),EB15),EI15),EP15),EW15),FD15),FK15),FR15),FY15),GF15),GM15),GT15),HA15),HH15),HO15))=HW15,0,IF(HO15=0,IF(HH15=0,IF(HA15=0,IF(GT15=0,IF(GM15=0,IF(GF15=0,IF(FY15=0,IF(FR15=0,IF(FK15=0,IF(FD15=0,IF(EW15=0,IF(EP15=0,IF(EI15=0,IF(EB15=0,IF(DU15=0,IF(DN15=0,IF(DG15=0,IF(CZ15=0,IF(CS15=0,IF(CL15=0,IF(CE15=0,IF(BX15=0,IF(BQ15=0,IF(BJ15=0,IF(BC15=0,IF(AV15=0,IF(AO15=0,IF(AH15=0,IF(AA15=0,IF(T15=0,IF(M15=0,HW15,M15),T15),AA15),AH15),AO15),AV15),BC15),BJ15),BQ15),BX15),CE15),CL15),CS15),CZ15),DG15),DN15),DU15),EB15),EI15),EP15),EW15),FD15),FK15),FR15),FY15),GF15),GM15),GT15),HA15),HH15),HO15))","v":0}]
[3,"Produit 3",null,null,null,0,null,null,0,0,0,0,0,null,null,0,0,0,0,0,null,null,0,0,0,0,0,null,null,0,0,0,0,0,null,null,0,0,0,0,0,null,null,0,0,0,0,0,null,null,0,0,0,0,0,null,null,0,0,0,0,0,null,null,0,0,0,0,0,null,null,0,0,0,0,0,null,null,0,0,0,0,0,null,null,0,0,0,0,0,null,null,0,0,0,0,0,null,null,0,0,0,0,0,null,null,0,0,0,0,0,null,null,0,0,0,0,0,null,null,0,0,0,0,0,null,null,0,0,0,0,0,null,null,0,0,0,0,0,null,null,0,0,0,0,0,null,null,0,0,0,0,0,null,null,0,0,0,0,0,null,null,0,0,0,0,0,null,null,0,0,0,0,0,null,null,0,0,0,0,0,null,null,0,0,0,0,0,null,null,0,0,0,0,0,null,null,0,0,0,0,0,null,null,0,0,0,0,0,null,null,0,0,0,0,0,null,null,0,0,0,0,0,0,0,0]
[4,"Produit 4",null,null,null,0,null,null,0,0,0,0,0,null,null,0,0,0,0,0,null,null,0,0,0,0,0,null,null,0,0,0,0,0,null,null,0,0,0,0,0,null,null,0,0,0,0,0,null,null,0,0,0,0,0,null,null,0,0,0,0,0,null,null,0,0,0,0,0,null,null,0,0,0,0,0,null,null,0,0,0,0,0,null,null,0,0,0,0,0,null,null,0,0,0,0,0,null,null,0,0,0,0,0,null,null,0,0,0,0,0,null,null,0,0,0,0,0,null,null,0,0,0,0,0,null,null,0,0,0,0,0,null,null,0,0,0,0,0,null,null,0,0,0,0,0,null,null,0,0,0,0,0,null,null,0,0,0,0,0,null,null,0,0,0,0,0,null,null,0,0,0,0,0,null,null,0,0,0,0,0,null,null,0,0,0,0,0,null,null,0,0,0,0,0,null,null,0,0,0,0,0,null,null,0,0,0,0,0,null,null,0,0,0,0,0,null,null,0,0,0,0,0,0,0,0]
[5,"Produit 5",null,null,null,0,null,null,0,0,0,0,0,null,null,0,0,0,0,0,null,null,0,0,0,0,0,null,null,0,0,0,0,0,null,null,0,0,0,0,0,null,null,0,0,0,0,0,null,null,0,0,0,0,0,null,null,0,0,0,0,0,null,null,0,0,0,0,0,null,null,0,0,0,0,0,null,null,0,0,0,0,0,null,null,0,0,0,0,0,null,null,0,0,0,0,0,null,null,0,0,0,0,0,null,null,0,0,0,0,0,null,null,0,0,0,0,0,null,null,0,0,0,0,0,null,null,0,0,0,0,0,null,null,0,0,0,0,0,null,null,0,0,0,0,0,null,null,0,0,0,0,0,null,null,0,0,0,0,0,null,null,0,0,0,0,0,null,null,0,0,0,0,0,null,null,0,0,0,0,0,null,null,0,0,0,0,0,null,null,0,0,0,0,0,null,null,0,0,0,0,0,null,null,0,0,0,0,0,null,null,0,0,0,0,0,null,null,0,0,0,0,0,0,0,0]
[6,"Produit 6",null,null,null,0,null,null,0,0,0,0,0,null,null,0,0,0,0,0,null,null,0,0,0,0,0,null,null,0,0,0,0,0,null,null,0,0,0,0,0,null,null,0,0,0,0,0,null,null,0,0,0,0,0,null,null,0,0,0,0,0,null,null,0,0,0,0,0,null,null,0,0,0,0,0,null,null,0,0,0,0,0,null,null,0,0,0,0,0,null,null,0,0,0,0,0,null,null,0,0,0,0,0,null,null,0,0,0,0,0,null,null,0,0,0,0,0,null,null,0,0,0,0,0,null,null,0,0,0,0,0,null,null,0,0,0,0,0,null,null,0,0,0,0,0,null,null,0,0,0,0,0,null,null,0,0,0,0,0,null,null,0,0,0,0,0,null,null,0,0,0,0,0,null,null,0,0,0,0,0,null,null,0,0,0,0,0,null,null,0,0,0,0,0,null,null,0,0,0,0,0,null,null,0,0,0,0,0,null,null,0,0,0,0,0,null,null,0,0,0,0,0,0,0,0]
[7,"Produit 7",null,null,null,0,null,null,0,0,0,0,0,null,null,0,0,0,0,0,null,null,0,0,0,0,0,null,null,0,0,0,0,0,null,null,0,0,0,0,0,null,null,0,0,0,0,0,null,null,0,0,0,0,0,null,null,0,0,0,0,0,null,null,0,0,0,0,0,null,null,0,0,0,0,0,null,null,0,0,0,0,0,null,null,0,0,0,0,0,null,null,0,0,0,0,0,null,null,0,0,0,0,0,null,null,0,0,0,0,0,null,null,0,0,0,0,0,null,null,0,0,0,0,0,null,null,0,0,0,0,0,null,null,0,0,0,0,0,null,null,0,0,0,0,0,null,null,0,0,0,0,0,null,null,0,0,0,0,0,null,null,0,0,0,0,0,null,null,0,0,0,0,0,null,null,0,0,0,0,0,null,null,0,0,0,0,0,null,null,0,0,0,0,0,null,null,0,0,0,0,0,null,null,0,0,0,0,0,null,null,0,0,0,0,0,null,null,0,0,0,0,0,0,0,0]
[8,"Produit 8",null,null,null,0,null,null,0,0,0,0,0,null,null,0,0,0,0,0,null,null,0,0,0,0,0,null,null,0,0,0,0,0,null,null,0,0,0,0,0,null,null,0,0,0,0,0,null,null,0,0,0,0,0,null,null,0,0,0,0,0,null,null,0,0,0,0,0,null,null,0,0,0,0,0,null,null,0,0,0,0,0,null,null,0,0,0,0,0,null,null,0,0,0,0,0,null,null,0,0,0,0,0,null,null,0,0,0,0,0,null,null,0,0,0,0,0,null,null,0,0,0,0,0,null,null,0,0,0,0,0,null,null,0,0,0,0,0,null,null,0,0,0,0,0,null,null,0,0,0,0,0,null,null,0,0,0,0,0,null,null,0,0,0,0,0,null,null,0,0,0,0,0,null,null,0,0,0,0,0,null,null,0,0,0,0,0,null,null,0,0,0,0,0,null,null,0,0,0,0,0,null,null,0,0,0,0,0,null,null,0,0,0,0,0,null,null,0,0,0,0,0,0,0,0]
[9,"Produit 9",null,null,null,0,null,null,0,0,0,0,0,null,null,0,0,0,0,0,null,null,0,0,0,0,0,null,null,0,0,0,0,0,null,null,0,0,0,0,0,null,null,0,0,0,0,0,null,null,0,0,0,0,0,null,null,0,0,0,0,0,null,null,0,0,0,0,0,null,null,0,0,0,0,0,null,null,0,0,0,0,0,null,null,0,0,0,0,0,null,null,0,0,0,0,0,null,null,0,0,0,0,0,null,null,0,0,0,0,0,null,null,0,0,0,0,0,null,null,0,0,0,0,0,null,null,0,0,0,0,0,null,null,0,0,0,0,0,null,null,0,0,0,0,0,null,null,0,0,0,0,0,null,null,0,0,0,0,0,null,null,0,0,0,0,0,null,null,0,0,0,0,0,null,null,0,0,0,0,0,null,null,0,0,0,0,0,null,null,0,0,0,0,0,null,null,0,0,0,0,0,null,null,0,0,0,0,0,null,null,0,0,0,0,0,null,null,0,0,0,0,0,0,0,0]
[10,"Produit 10",null,null,null,0,null,null,0,0,0,0,0,null,null,0,0,0,0,0,null,null,0,0,0,0,0,null,null,0,0,0,0,0,null,null,0,0,0,0,0,null,null,0,0,0,0,0,null,null,0,0,0,0,0,null,null,0,0,0,0,0,null,null,0,0,0,0,0,null,null,0,0,0,0,0,null,null,0,0,0,0,0,null,null,0,0,0,0,0,null,null,0,0,0,0,0,null,null,0,0,0,0,0,null,null,0,0,0,0,0,null,null,0,0,0,0,0,null,null,0,0,0,0,0,null,null,0,0,0,0,0,null,null,0,0,0,0,0,null,null,0,0,0,0,0,null,null,0,0,0,0,0,null,null,0,0,0,0,0,null,null,0,0,0,0,0,null,null,0,0,0,0,0,null,null,0,0,0,0,0,null,null,0,0,0,0,0,null,null,0,0,0,0,0,null,null,0,0,0,0,0,null,null,0,0,0,0,0,null,null,0,0,0,0,0,null,null,0,0,0,0,0,0,0,0]
[11,"Produit 11",null,null,null,0,null,null,0,0,0,0,0,null,null,0,0,0,0,0,null,null,0,0,0,0,0,null,null,0,0,0,0,0,null,null,0,0,0,0,0,null,null,0,0,0,0,0,null,null,0,0,0,0,0,null,null,0,0,0,0,0,null,null,0,0,0,0,0,null,null,0,0,0,0,0,null,null,0,0,0,0,0,null,null,0,0,0,0,0,null,null,0,0,0,0,0,null,null,0,0,0,0,0,null,null,0,0,0,0,0,null,null,0,0,0,0,0,null,null,0,0,0,0,0,null,null,0,0,0,0,0,null,null,0,0,0,0,0,null,null,0,0,0,0,0,null,null,0,0,0,0,0,null,null,0,0,0,0,0,null,null,0,0,0,0,0,null,null,0,0,0,0,0,null,null,0,0,0,0,0,null,null,0,0,0,0,0,null,null,0,0,0,0,0,null,null,0,0,0,0,0,null,null,0,0,0,0,0,null,null,0,0,0,0,0,null,null,0,0,0,0,0,0,0,0]
[12,"Produit 12",null,null,null,0,null,null,0,0,0,0,0,null,null,0,0,0,0,0,null,null,0,0,0,0,0,null,null,0,0,0,0,0,null,null,0,0,0,0,0,null,null,0,0,0,0,0,null,null,0,0,0,0,0,null,null,0,0,0,0,0,null,null,0,0,0,0,0,null,null,0,0,0,0,0,null,null,0,0,0,0,0,null,null,0,0,0,0,0,null,null,0,0,0,0,0,null,null,0,0,0,0,0,null,null,0,0,0,0,0,null,null,0,0,0,0,0,null,null,0,0,0,0,0,null,null,0,0,0,0,0,null,null,0,0,0,0,0,null,null,0,0,0,0,0,null,null,0,0,0,0,0,null,null,0,0,0,0,0,null,null,0,0,0,0,0,null,null,0,0,0,0,0,null,null,0,0,0,0,0,null,null,0,0,0,0,0,null,null,0,0,0,0,0,null,null,0,0,0,0,0,null,null,0,0,0,0,0,null,null,0,0,0,0,0,null,null,0,0,0,0,0,0,0,0]
[13,"Produit 13",null,null,null,0,null,null,0,0,0,0,0,null,null,0,0,0,0,0,null,null,0,0,0,0,0,null,null,0,0,0,0,0,null,null,0,0,0,0,0,null,null,0,0,0,0,0,null,null,0,0,0,0,0,null,null,0,0,0,0,0,null,null,0,0,0,0,0,null,null,0,0,0,0,0,null,null,0,0,0,0,0,null,null,0,0,0,0,0,null,null,0,0,0,0,0,null,null,0,0,0,0,0,null,null,0,0,0,0,0,null,null,0,0,0,0,0,null,null,0,0,0,0,0,null,null,0,0,0,0,0,null,null,0,0,0,0,0,null,null,0,0,0,0,0,null,null,0,0,0,0,0,null,null,0,0,0,0,0,null,null,0,0,0,0,0,null,null,0,0,0,0,0,null,null,0,0,0,0,0,null,null,0,0,0,0,0,null,null,0,0,0,0,0,null,null,0,0,0,0,0,null,null,0,0,0,0,0,null,null,0,0,0,0,0,null,null,0,0,0,0,0,0,0,0]
[14,"Produit 14",null,null,null,0,null,null,0,0,0,0,0,null,null,0,0,0,0,0,null,null,0,0,0,0,0,null,null,0,0,0,0,0,null,null,0,0,0,0,0,null,null,0,0,0,0,0,null,null,0,0,0,0,0,null,null,0,0,0,0,0,null,null,0,0,0,0,0,null,null,0,0,0,0,0,null,null,0,0,0,0,0,null,null,0,0,0,0,0,null,null,0,0,0,0,0,null,null,0,0,0,0,0,null,null,0,0,0,0,0,null,null,0,0,0,0,0,null,null,0,0,0,0,0,null,null,0,0,0,0,0,null,null,0,0,0,0,0,null,null,0,0,0,0,0,null,null,0,0,0,0,0,null,null,0,0,0,0,0,null,null,0,0,0,0,0,null,null,0,0,0,0,0,null,null,0,0,0,0,0,null,null,0,0,0,0,0,null,null,0,0,0,0,0,null,null,0,0,0,0,0,null,null,0,0,0,0,0,null,null,0,0,0,0,0,null,null,0,0,0,0,0,0,0,0]
[15,"Produit 15",null,null,null,0,null,null,0,0,0,0,0,null,null,0,0,0,0,0,null,null,0,0,0,0,0,null,null,0,0,0,0,0,null,null,0,0,0,0,0,null,null,0,0,0,0,0,null,null,0,0,0,0,0,null,null,0,0,0,0,0,null,null,0,0,0,0,0,null,null,0,0,0,0,0,null,null,0,0,0,0,0,null,null,0,0,0,0,0,null,null,0,0,0,0,0,null,null,0,0,0,0,0,null,null,0,0,0,0,0,null,null,0,0,0,0,0,null,null,0,0,0,0,0,null,null,0,0,0,0,0,null,null,0,0,0,0,0,null,null,0,0,0,0,0,null,null,0,0,0,0,0,null,null,0,0,0,0,0,null,null,0,0,0,0,0,null,null,0,0,0,0,0,null,null,0,0,0,0,0,null,null,0,0,0,0,0,null,null,0,0,0,0,0,null,null,0,0,0,0,0,null,null,0,0,0,0,0,null,null,0,0,0,0,0,null,null,0,0,0,0,0,0,0,0]
[16,"Produit 16",null,null,null,0,null,null,0,0,0,0,0,null,null,0,0,0,0,0,null,null,0,0,0,0,0,null,null,0,0,0,0,0,null,null,0,0,0,0,0,null,null,0,0,0,0,0,null,null,0,0,0,0,0,null,null,0,0,0,0,0,null,null,0,0,0,0,0,null,null,0,0,0,0,0,null,null,0,0,0,0,0,null,null,0,0,0,0,0,null,null,0,0,0,0,0,null,null,0,0,0,0,0,null,null,0,0,0,0,0,null,null,0,0,0,0,0,null,null,0,0,0,0,0,null,null,0,0,0,0,0,null,null,0,0,0,0,0,null,null,0,0,0,0,0,null,null,0,0,0,0,0,null,null,0,0,0,0,0,null,null,0,0,0,0,0,null,null,0,0,0,0,0,null,null,0,0,0,0,0,null,null,0,0,0,0,0,null,null,0,0,0,0,0,null,null,0,0,0,0,0,null,null,0,0,0,0,0,null,null,0,0,0,0,0,null,null,0,0,0,0,0,0,0,0]
[17,"Produit 17",null,null,null,0,null,null,0,0,0,0,0,null,null,0,0,0,0,0,null,null,0,0,0,0,0,null,null,0,0,0,0,0,null,null,0,0,0,0,0,null,null,0,0,0,0,0,null,null,0,0,0,0,0,null,null,0,0,0,0,0,null,null,0,0,0,0,0,null,null,0,0,0,0,0,null,null,0,0,0,0,0,null,null,0,0,0,0,0,null,null,0,0,0,0,0,null,null,0,0,0,0,0,null,null,0,0,0,0,0,null,null,0,0,0,0,0,null,null,0,0,0,0,0,null,null,0,0,0,0,0,null,null,0,0,0,0,0,null,null,0,0,0,0,0,null,null,0,0,0,0,0,null,null,0,0,0,0,0,null,null,0,0,0,0,0,null,null,0,0,0,0,0,null,null,0,0,0,0,0,null,null,0,0,0,0,0,null,null,0,0,0,0,0,null,null,0,0,0,0,0,null,null,0,0,0,0,0,null,null,0,0,0,0,0,null,null,0,0,0,0,0,0,0,0]
[18,"Produit 18",null,null,null,0,null,null,0,0,0,0,0,null,null,0,0,0,0,0,null,null,0,0,0,0,0,null,null,0,0,0,0,0,null,null,0,0,0,0,0,null,null,0,0,0,0,0,null,null,0,0,0,0,0,null,null,0,0,0,0,0,null,null,0,0,0,0,0,null,null,0,0,0,0,0,null,null,0,0,0,0,0,null,null,0,0,0,0,0,null,null,0,0,0,0,0,null,null,0,0,0,0,0,null,null,0,0,0,0,0,null,null,0,0,0,0,0,null,null,0,0,0,0,0,null,null,0,0,0,0,0,null,null,0,0,0,0,0,null,null,0,0,0,0,0,null,null,0,0,0,0,0,null,null,0,0,0,0,0,null,null,0,0,0,0,0,null,null,0,0,0,0,0,null,null,0,0,0,0,0,null,null,0,0,0,0,0,null,null,0,0,0,0,0,null,null,0,0,0,0,0,null,null,0,0,0,0,0,null,null,0,0,0,0,0,null,null,0,0,0,0,0,0,0,0]
[19,"Produit 19",null,null,null,0,null,null,0,0,0,0,0,null,null,0,0,0,0,0,null,null,0,0,0,0,0,null,null,0,0,0,0,0,null,null,0,0,0,0,0,null,null,0,0,0,0,0,null,null,0,0,0,0,0,null,null,0,0,0,0,0,null,null,0,0,0,0,0,null,null,0,0,0,0,0,null,null,0,0,0,0,0,null,null,0,0,0,0,0,null,null,0,0,0,0,0,null,null,0,0,0,0,0,null,null,0,0,0,0,0,null,null,0,0,0,0,0,null,null,0,0,0,0,0,null,null,0,0,0,0,0,null,null,0,0,0,0,0,null,null,0,0,0,0,0,null,null,0,0,0,0,0,null,null,0,0,0,0,0,null,null,0,0,0,0,0,null,null,0,0,0,0,0,null,null,0,0,0,0,0,null,null,0,0,0,0,0,null,null,0,0,0,0,0,null,null,0,0,0,0,0,null,null,0,0,0,0,0,null,null,0,0,0,0,0,null,null,0,0,0,0,0,0,0,0]
[20,"Produit 20",null,null,null,0,null,null,0,0,0,0,0,null,null,0,0,0,0,0,null,null,0,0,0,0,0,null,null,0,0,0,0,0,null,null,0,0,0,0,0,null,null,0,0,0,0,0,null,null,0,0,0,0,0,null,null,0,0,0,0,0,null,null,0,0,0,0,0,null,null,0,0,0,0,0,null,null,0,0,0,0,0,null,null,0,0,0,0,0,null,null,0,0,0,0,0,null,null,0,0,0,0,0,null,null,0,0,0,0,0,null,null,0,0,0,0,0,null,null,0,0,0,0,0,null,null,0,0,0,0,0,null,null,0,0,0,0,0,null,null,0,0,0,0,0,null,null,0,0,0,0,0,null,null,0,0,0,0,0,null,null,0,0,0,0,0,null,null,0,0,0,0,0,null,null,0,0,0,0,0,null,null,0,0,0,0,0,null,null,0,0,0,0,0,null,null,0,0,0,0,0,null,null,0,0,0,0,0,null,null,0,0,0,0,0,null,null,0,0,0,0,0,0,0,0]